Cogmind - Beta 13 @@@ ROGUE MODE // 2024.08.03 @ 04:40:08 Player: Nalzok Result: Destroyed by Y-45 Defender with Beam Rifle Performance ------------- Evolutions (2) 1000 Regions Visited (7) 1400 Robots Destroyed (33) 165 Value Destroyed (997) 997 Prototype IDs (25) 500 Alien Tech Used (0) 0 Bonus (300) 300 TOTAL SCORE: 4362 Bonus ------- Aligned with FarCom 300 Cogmind --------- Core Integrity 0/550 Matter 292/300 Energy 98/100 System Corruption 4% Temperature Warm (114) Movement Core (50) Location -8/Materials Parts ------- > --- POWER (1) -------- (None) > --- PROPULSION (2) --- (None) > --- UTILITY (4) ------ Advanced Visual Processing Unit > --- WEAPON (4) ------- (None) > --- INVENTORY (5) ---- Aluminum Leg Aluminum Leg Rocket Launcher Field Lobotomy Kit (5) Great Maul Peak State ------------ > --- POWER ------------ Light Nuclear Core > --- PROPULSION ------- Aluminum Leg Carbon-fiber Leg > --- UTILITY ---------- Medium Storage Unit Experimental Sensor Array Signal Interpreter Targeting Computer > --- WEAPON ----------- Particle Gun Particle Gun > --- INVENTORY -------- Aluminum Leg Aluminum Leg Aluminum Leg Improved Heat Sink Particle Gun Rocket Launcher Field Lobotomy Kit [Rating: 25] Favorites ----------- Power Improved Ion Engine Engine Improved Ion Engine Power Core Light Nuclear Core Propulsion Aluminum Leg Leg Aluminum Leg Utility Targeting Computer Device Experimental Sensor Array Storage Medium Storage Unit Processor Targeting Computer Protection Propulsion Shielding Weapon Heavy Assault Rifle Energy Gun Particle Gun Ballistic Gun Heavy Assault Rifle Build | -11 -10 -10 -9 -9 -9 -8 -8 ------- Run | Yrd Mat Min Mat Min Exi Min Mat Slots Evolved 4 | . . . 2 . . . 2 Power . | . . . . . . . . Propulsion . | . . . . . . . . Utility 2 | . . . 2 . . . . Weapon 2 | . . . . . . . 2 Parts Attached 41 | . 4 . 12 8 1 8 8 Power 5 | . 2 . 1 1 . 1 . Engine 3 | . 1 . 1 1 . . . Core 2 | . 1 . . . . 1 . Reactor . | . . . . . . . . Propulsion 11 | . . . 3 3 . 4 1 Treads . | . . . . . . . . Leg 11 | . . . 3 3 . 4 1 Wheel . | . . . . . . . . Hover . | . . . . . . . . Flight . | . . . . . . . . Utility 14 | . 1 . 4 4 1 1 3 Device 6 | . 1 . 1 3 . 1 . Storage 2 | . . . 1 . 1 . . Processor 3 | . . . 1 1 . . 1 Hackware . | . . . . . . . . Protection 3 | . . . 1 . . . 2 Artifact . | . . . . . . . . Weapon 11 | . 1 . 4 . . 2 4 Energy Gun 3 | . . . . . . 2 1 Energy Cannon . | . . . . . . . . Ballistic Gun 8 | . 1 . 4 . . . 3 Ballistic Cannon . | . . . . . . . . Launcher . | . . . . . . . . Special Weapon . | . . . . . . . . Impact Weapon . | . . . . . . . . Slashing Weapon . | . . . . . . . . Piercing Weapon . | . . . . . . . . Special Melee Weapon . | . . . . . . . . Unidentified Prototypes 2 | . . . . 1 . . 1 Parts Lost 20 | . 3 . . 4 . 5 8 Power 4 | . 2 . . . . 1 1 Propulsion 6 | . . . . 1 . 2 3 Utility 5 | . . . . 3 . . 2 Weapon 5 | . 1 . . . . 2 2 Highest Loss Streak 8 | . 2 . . 2 . 5 8 To Critical Strikes . | . . . . . . . . Average Slot Usage (%) 96 | . 84 100 99 98 100 97 81 Engine 8 | . 6 14 11 11 11 4 . Core 1 | . 3 . . . . 6 6 Leg 21 | . 28 28 22 21 22 21 14 Device 12 | . 3 14 10 18 11 11 7 Storage 10 | . 14 14 11 11 11 11 7 Processor 14 | . . . 11 13 22 22 13 Protection 1 | . . . 11 . . . 2 Energy Gun 3 | . 7 . . . . 13 14 Ballistic Gun 19 | . 19 28 22 22 22 8 14 Naked Turns 1 | . . . . . . . 1 Heaviest Build 34 | 13 13 13 25 25 24 24 34 Greatest Support 25 | 20 20 20 20 20 20 25 25 Greatest Overweight (x) 2 | . . . 1 2 1 1 1 Average Overweight (x) . | . . . . 1 1 . . Largest Inventory Capacity 10 | 8 8 8 10 10 10 10 10 Average Capacity 9 | 8 8 8 8 10 10 10 9 Most Carried 10 | 6 8 7 10 10 10 10 10 Average Carried 9 | 4 6 7 8 9 10 8 7 Final Capacity 10 | 8 8 8 10 10 10 10 5 Final Carried 10 | 4 7 7 10 10 10 9 5 Class Distribution -------------------- 61% | Scavenger-Mutant 21% | Mutant 11% | Scavenger-Skirmisher 5% | Skirmisher Dominant Class ---------------- Mutant | -10/Materials Mutant | -10/Mines Mutant | -9/Materials Scavenger-Mutant | -9/Mines Scavenger-Mutant | -9/Exiles Skirmisher | -8/Mines Scavenger-Skirmisher | -8/Materials Resources | -11 -10 -10 -9 -9 -9 -8 -8 ----------- Run | Yrd Mat Min Mat Min Exi Min Mat Matter Collected 911 | 200 30 . 316 173 24 121 47 Remotely . | . . . . . . . . Salvage Created 1338 | . 262 . 577 199 . 172 128 Parts 74 | . 10 . 36 16 . 3 9 Haulers Intercepted 2 | . . . 2 . . . . Recyclers Shooed 2 | . . . 2 . . . . Parts Field Recycled . | . . . . . . . . Retrieved Matter . | . . . . . . . . Parts Self-Destructed . | . . . . . . . . Prevented . | . . . . . . . . Kills | -11 -10 -10 -9 -9 -9 -8 -8 ------- Run | Yrd Mat Min Mat Min Exi Min Mat Combat Hostiles Destroyed 28 | . 7 . 7 7 . 4 3 Melee 1 | . . . . . . . 1 Guns 26 | . 6 . 7 7 . 4 2 AOE 1 | . 1 . . . . . . Classes Destroyed 7 | . 2 . 4 . . . 1 Hauler 2 | . . . 2 . . . . Recycler 1 | . . . 1 . . . . Watcher 2 | . . . 2 . . . . Swarmer 8 | . 3 . . 3 . 1 1 Grunt 15 | . 4 . 3 4 . 3 1 Sentry 4 | . . . 4 . . . . Hunter 1 | . . . . . . . 1 Best Kill Streak 5 | . 5 . 2 3 . 2 2 Combat Bots Only 5 | . 5 . 2 3 . 2 2 Max Kills in Single Turn 2 | . 1 . 1 2 . 1 2 Gunslinging 1 | . . . . 1 . . 1 Exploded 1 | . 1 . . . . . . Melee 1 | . . . . . . . 1 Uniques/NPCs Destroyed . | . . . . . . . . Combat | -11 -10 -10 -9 -9 -9 -8 -8 -------- Run | Yrd Mat Min Mat Min Exi Min Mat Hostile Shots Fired 275 | . 31 1 51 39 . 47 106 Missed 78 | . 8 1 12 14 . 8 35 Damage Taken 3035 | . 391 . 508 315 . 586 1235 Core 815 | . 119 . 81 22 . 31 562 Absorbed by Shields . | . . . . . . . . Redirected to Shielding 106 | . . . 43 10 . . 53 Core Remaining (%) 72 | 100 . 52 . . . 66 . Volleys Fired 99 | . 20 . 38 13 . 23 5 Largest 4 | . 2 . 2 2 . 2 4 Hottest 175 | . 60 . 46 46 . 130 175 Shots Fired 196 | . 36 . 76 26 . 42 16 Gun 196 | . 36 . 76 26 . 42 16 Cannon . | . . . . . . . . Launcher . | . . . . . . . . Special . | . . . . . . . . Kinetic 148 | . 20 . 76 26 . 20 6 Thermal 32 | . . . . . . 22 10 Explosive . | . . . . . . . . Electromagnetic 16 | . 16 . . . . . . Robot Hit Streak 11 | . 9 . 11 7 . 10 3 Robot Miss Streak 5 | . 2 . 5 2 . 3 5 Penetration Max . | . . . . . . . . Secondary Targets 4 | . 2 . . 1 . . 1 Max Gunslinging Chain 1 | . 1 . . 1 . . 1 Shots Hit Robots 135 | . 26 . 52 20 . 28 9 Core Hits 62 | . 16 . 22 11 . 8 5 Critical Kills . | . . . . . . . . Critical Parts Destroyed . | . . . . . . . . Critical Strikes 1 | . . . . . . . 1 Burn 1 | . . . . . . . 1 Melee Attacks . | . . . . . . . . Impact . | . . . . . . . . Slashing . | . . . . . . . . Piercing . | . . . . . . . . Sneak Attacks . | . . . . . . . . Combat Hostiles . | . . . . . . . . Follow-up Attacks . | . . . . . . . . Damage Inflicted 1982 | . 292 . 745 323 . 453 169 Guns 1916 | . 267 . 745 323 . 453 128 Cannons . | . . . . . . . . Explosions 25 | . 25 . . . . . . Melee . | . . . . . . . . Ramming 41 | . . . . . . . 41 Kinetic 1508 | . 105 . 745 323 . 282 53 Thermal 271 | . 25 . . . . 171 75 Explosive . | . . . . . . . . Electromagnetic 162 | . 162 . . . . . . Impact . | . . . . . . . . Slashing . | . . . . . . . . Piercing . | . . . . . . . . Highest Corruption 4 | . . . . 3 3 3 4 Average Corruption 3 | . . . . 3 3 3 3 Corruption Purged . | . . . . . . . . Corruption Blocked . | . . . . . . . . Effects 36 | . . . . 18 8 7 3 Message Errors 13 | . . . . 8 2 2 1 Matter Fused 7 | . . . . 3 3 . 1 Heat Flow Errors 5 | . . . . 3 . 1 1 Energy Discharges 2 | . . . . . . 2 . Parts Fused 1 | . . . . 1 . . . Data Loss (minor) 4 | . . . . . 3 1 . Data Loss (major) 3 | . . . . 2 . 1 . Alerts 1 | . . . . 1 . . . Overload Shots . | . . . . . . . . Overflow Damage . | . . . . . . . . Projectiles . | . . . . . . . . Explosions . | . . . . . . . . Melee . | . . . . . . . . Knockbacks . | . . . . . . . . Impact . | . . . . . . . . Kinetic . | . . . . . . . . Secondary . | . . . . . . . . Self-Inflicted Damage 134 | . 117 . . . . . 17 Shots 2 | . 2 . . . . . . Rammed 10 | . . . . . . . 10 Targets Rammed 10 | . . . . . . . 10 Kicked . | . . . . . . . . Crushed . | . . . . . . . . Highest Temperature 401 | . 100 . 24 233 . 401 180 Average Temperature 92 | . 60 . 5 93 . 139 55 Received Heat Transfer 1206 | . 162 . 240 111 . 288 405 Siege Activations . | . . . . . . . . Robots Corrupted . | . . . . . . . . Combat Hostiles . | . . . . . . . . Parts Fried . | . . . . . . . . Impact Corruptions . | . . . . . . . . Robots Melted . | . . . . . . . . Combat Hostiles . | . . . . . . . . Parts Melted 2 | . . . . . . 2 . Heat Transferred 716 | . 50 . . . . 407 259 Parts Sabotaged . | . . . . . . . . Parts Stolen . | . . . . . . . . Parts Stripped . | . . . . . . . . Power Chain Reactions 1 | . 1 . . . . . . Alert | -11 -10 -10 -9 -9 -9 -8 -8 ------- Run | Yrd Mat Min Mat Min Exi Min Mat Peak Influence 332 | . 198 76 332 160 . 90 169 Initial 76 | . . 76 29 60 . . . Average 57 | . 148 76 146 26 . 34 31 Maximum Alert Level 1 | . . . 1 . . . . Low Security (%) 96 | 100 100 100 75 100 . 100 100 Level 1 3 | . . . 24 . . . . Level 2 . | . . . . . . . . Level 3 . | . . . . . . . . Level 4 . | . . . . . . . . Level 5 . | . . . . . . . . High Security . | . . . . . . . . Max Security . | . . . . . . . . Squads Dispatched 7 | . 2 . 2 . . . 3 Investigation 1 | . . . 1 . . . . Extermination . | . . . . . . . . Reinforcement 6 | . 2 . 1 . . . 3 Assault . | . . . . . . . . Garrison . | . . . . . . . . Intercept . | . . . . . . . . Searches Triggered . | . . . . . . . . Construction Impeded 1 | . . . . . . . 1 Haulers Reinforced . | . . . . . . . . Active Scanning Responses . | . . . . . . . . Cargo Convoy Interrupts . | . . . . . . . . Stealth | -11 -10 -10 -9 -9 -9 -8 -8 --------- Run | Yrd Mat Min Mat Min Exi Min Mat Distress Signals 8 | . . . 6 . . . 2 Communications Jammed . | . . . . . . . . Distress Signals . | . . . . . . . . Times Spotted 60 | . 8 2 15 9 . 6 20 Peak Tracking Total 14 | . 5 2 5 3 . 3 14 Tactical Retreats 7 | . . . 2 . . 1 4 Traps | -11 -10 -10 -9 -9 -9 -8 -8 ------- Run | Yrd Mat Min Mat Min Exi Min Mat Traps Triggered 2 | . . . . . . . 2 Indirectly . | . . . . . . . . Trap Hack Attempts . | . . . . . . . . Triggered . | . . . . . . . . Disarmed . | . . . . . . . . Reprogrammed . | . . . . . . . . Reused . | . . . . . . . . Traps Extracted . | . . . . . . . . Installed . | . . . . . . . . Triggered . | . . . . . . . . Machines | -11 -10 -10 -9 -9 -9 -8 -8 ---------- Run | Yrd Mat Min Mat Min Exi Min Mat Machines Disabled 1 | . 1 . . . . . . Max in Single Turn 1 | . 1 . . . . . . Machines Repaired . | . . . . . . . . Machines Dismantled . | . . . . . . . . Machines Sabotaged . | . . . . . . . . Overloaded Fab Kills . | . . . . . . . . Hacking | -11 -10 -10 -9 -9 -9 -8 -8 --------- Run | Yrd Mat Min Mat Min Exi Min Mat Machines Accessed 9 | . 1 . 3 . 2 . 3 Terminals 6 | . 1 . 2 . . . 3 Fabricators . | . . . . . . . . Repair Stations . | . . . . . . . . Recycling Units . | . . . . . . . . Scanalyzers 1 | . . . 1 . . . . Garrison Access . | . . . . . . . . Total Hacks 27 | . 2 . 10 . 6 . 9 Successful 14 | . . . 4 . 6 . 4 Failed 13 | . 2 . 6 . . . 5 Catastrophic 3 | . . . 1 . . . 2 Database Lockouts . | . . . . . . . . Manual 16 | . . . 6 . 1 . 9 Terminals 18 | . 2 . 7 . . . 9 Fabricators . | . . . . . . . . Repair Stations . | . . . . . . . . Recycling Units . | . . . . . . . . Scanalyzers 3 | . . . 3 . . . . Garrison Access . | . . . . . . . . Terminal Hacks 9 | . . . 1 . 6 . 2 Record 5 | . . . . . 5 . . Unreport Threat 1 | . . . . . . . 1 Transport Status 1 | . . . 1 . . . . Recall Investigation 1 | . . . . . . . 1 Derelict Proto ID Bank 1 | . . . . . 1 . . Fabricator Hacks . | . . . . . . . . Repair Station Hacks . | . . . . . . . . Recycling Unit Hacks . | . . . . . . . . Scanalyzer 1 | . . . 1 . . . . Insert Component 1 | . . . 1 . . . . Garrison Access Hacks . | . . . . . . . . Unauthorized Hacks 4 | . . . 2 . . . 2 Terminals 4 | . . . 2 . . . 2 Botnet 3 | . . . 2 . . . 1 Detonate 1 | . . . . . . . 1 Fabricators . | . . . . . . . . Repair Stations . | . . . . . . . . Recycling Units . | . . . . . . . . Scanalyzers . | . . . . . . . . Garrison Access . | . . . . . . . . Data Cores Recovered . | . . . . . . . . Used . | . . . . . . . . Hacking Detections 7 | . 1 . 3 . . . 3 Full Trace Events 2 | . . . 1 . . . 1 Feedback Events . | . . . . . . . . Feedback Blocked . | . . . . . . . . Robot Schematics Acquired . | . . . . . . . . Robots Built . | . . . . . . . . Authchips . | . . . . . . . . Time . | . . . . . . . . Total Robot Build Rating . | . . . . . . . . Part Schematics Acquired . | . . . . . . . . Parts Built . | . . . . . . . . Authchips . | . . . . . . . . Time . | . . . . . . . . Total Part Build Rating . | . . . . . . . . Parts Repaired . | . . . . . . . . Time . | . . . . . . . . Parts Recycled . | . . . . . . . . Recycled Matter . | . . . . . . . . Retrieved Matter . | . . . . . . . . Retrieved Components . | . . . . . . . . Parts Scanalyzed 1 | . . . 1 . . . . Part Schematics Acquired . | . . . . . . . . Parts Damaged . | . . . . . . . . Bothacking | -11 -10 -10 -9 -9 -9 -8 -8 ------------ Run | Yrd Mat Min Mat Min Exi Min Mat Used RIF Installer . | . . . . . . . . Robots Hacked . | . . . . . . . . Non-combat . | . . . . . . . . Combat . | . . . . . . . . Robot Hacks Applied . | . . . . . . . . Relay Couplers Released . | . . . . . . . . Fabnet Peak Effective % . | . . . . . . . . Robots Rewired . | . . . . . . . . Allies Hacked . | . . . . . . . . Hacks Repelled . | . . . . . . . . Allies | -11 -10 -10 -9 -9 -9 -8 -8 -------- Run | Yrd Mat Min Mat Min Exi Min Mat Total Allies . | . . . . . . . . Largest Group . | . . . . . . . . Highest-Rated Group . | . . . . . . . . Highest-Rated Ally . | . . . . . . . . Total Orders . | . . . . . . . . Ally Attacks . | . . . . . . . . Total Damage . | . . . . . . . . Kills . | . . . . . . . . Allies Corrupted . | . . . . . . . . Allies Melted . | . . . . . . . . Intel | -11 -10 -10 -9 -9 -9 -8 -8 ------- Run | Yrd Mat Min Mat Min Exi Min Mat Robot Analysis Total . | . . . . . . . . Derelict Logs Recovered 2 | . . . . 2 . . . Drone Launches . | . . . . . . . . Drone Recoveries . | . . . . . . . . Exploration | -11 -10 -10 -9 -9 -9 -8 -8 ------------- Run | Yrd Mat Min Mat Min Exi Min Mat Turns Passed 3592 | 9 234 110 466 1411 583 401 378 Spaces Moved 1868 | 7 137 92 230 696 306 208 192 Core 105 | . . . . . . . 105 Treads . | . . . . . . . . Legs 1763 | 7 137 92 230 696 306 208 87 Wheels . | . . . . . . . . Hover . | . . . . . . . . Flight . | . . . . . . . . Fastest Speed 50 | 120 120 120 120 190 190 120 50 Average Speed 161 | 120 120 120 140 190 190 141 113 Slowest Speed 260 | 120 120 120 190 260 190 190 190 Overloaded Moves . | . . . . . . . . Propulsion Burnouts . | . . . . . . . . Robots Hopped . | . . . . . . . . Cave-ins Triggered . | . . . . . . . . Exploration Rate (%) 41 | 2 34 35 24 93 67 45 32 Regions Visited 7 Branch Regions 4 Pre-discovered Areas 1 | . . . . . 1 . . Known Exits Taken 3 | . . . . 1 1 1 . Unknown Exits Taken 4 | 1 1 1 1 . . . . Scrap Searched 2 | . . . . 1 . 1 . Spaces Dug . | . . . . . . . . Terrain Destroyed 31 | . 31 . . . . . . Melee . | . . . . . . . . Projectile . | . . . . . . . . AOE 31 | . 31 . . . . . . Terrain Rammed . | . . . . . . . . Walls Destroyed . | . . . . . . . . Machines Disabled . | . . . . . . . . Actions | -11 -10 -10 -9 -9 -9 -8 -8 --------- Run | Yrd Mat Min Mat Min Exi Min Mat Total 2255 | 8 174 91 306 757 308 270 341 Wait 191 | . 5 . 10 30 . 29 117 Move 1861 | 6 136 91 229 695 305 207 192 Hop . | . . . . . . . . Pick Up 28 | . 7 . 6 5 1 3 6 Fast Attach 8 | . 2 . 1 3 . . 2 Attach 17 | . 2 . 2 1 . 5 7 Detach 1 | . . . . . . . 1 Swap 17 | . . . 9 4 1 3 . Drop 23 | 2 2 . 11 6 1 . 1 Fire 99 | . 20 . 38 13 . 23 5 Melee . | . . . . . . . . Ram 10 | . . . . . . . 10 Kick . | . . . . . . . . Crush . | . . . . . . . . Escape Stasis . | . . . . . . . . Rewire . | . . . . . . . . Trap . | . . . . . . . . Miscellaneous . | . . . . . . . . Route ------- -11/Scrapyard -10/Materials -10/Mines -9/Materials -9/Mines (discovered 3 exits: *Mat x2 / *Exi) -9/Exiles -8/Mines -8/Materials (discovered 1 exit: Fac) History --------- Turn | Location | Event 1 | -11/Scrapyard | Discovered new exit (range 3) 10 | -11/Scrapyard | Entered Materials 166 | -10/Materials | Discovered new exit (range 15) 244 | -10/Materials | Entered Mines 300 | -10/Mines | Build established: Mutant 322 | -10/Mines | Discovered new exit (range 8) 354 | -10/Mines | Entered Materials 354 | -9/Materials | Evolved 2 slots: Utility x2 730 | -9/Materials | Discovered new exit (range 15) 820 | -9/Materials | Entered Mines 822 | -9/Mines | Joined a pair of Derelicts in attacking an 0b10 outpost 914 | -9/Mines | Learned Materials emergency access door positions 962 | -9/Mines | Build established: Scavenger-Mutant 1077 | -9/Mines | Found a damaged Exp. Sensor Array with a note attached 1081 | -9/Mines | Found Prototype Device 1081 | -9/Mines | Identified Exp. Sensor Array 1338 | -9/Mines | Found a hidden stash of uninstalled traps 1508 | -9/Mines | Received a Rocket Launcher from a helpful Derelict 1682 | -9/Mines | Learned location of 1 exit from Materials 1726 | -9/Mines | Discovered new exit (range 7) 1878 | -9/Mines | Discovered new exit (range 16) 1907 | -9/Mines | Identified exit to Materials 2223 | -9/Mines | Deemed a non-threat by the Exiles lab entrance 2223 | -9/Mines | Discovered new exit (range 5) 2229 | -9/Mines | Identified exit to Exiles 2231 | -9/Mines | Entered Exiles 2279 | -9/Exiles | Met 8R-AWN 2311 | -9/Exiles | Met EX-HEX 2372 | -9/Exiles | Met EX-BIN 2401 | -9/Exiles | Aligned with FarCom system 2402 | -9/Exiles | Given EX-Vault access code 2488 | -9/Exiles | Opened EX-Vault 2507 | -9/Exiles | Found Field Lobotomy Kit 2550 | -9/Exiles | Warned to stay clear of 0b10 Research branches 2611 | -9/Exiles | Met EX-DEC 2660 | -9/Exiles | Learned location of Zion (-7) 2797 | -9/Exiles | Discovered new exit (range 10) 2812 | -9/Exiles | Identified exit to Mines 2814 | -9/Exiles | Left Exiles lab with Field Lobotomy Kit 2814 | -9/Exiles | Entered Mines 3002 | -8/Mines | Lost 5 parts (1p2n2w) 3199 | -8/Mines | Discovered exit to Materials (range 8) 3215 | -8/Mines | Entered Materials 3215 | -8/Materials | Evolved 2 slots: Weapon x2 3216 | -8/Materials | Identified exit to Factory 3526 | -8/Materials | Released all parts (8) 3547 | -8/Materials | Core integrity fell below 50% 3580 | -8/Materials | Lost 8 parts (1p3n2u2w) 3587 | -8/Materials | Core integrity fell below 20% 3593 | -8/Materials | Destroyed by Y-45 Defender with Beam Rifle Last Messages --------------- dispatching reinforcements to local area. 03546_ Slammed into W-25 Informer. 03546_ W-25 Informer sends out distress signal. 03546_ Penetrated by Slug. 03547_ Slug penetrates Wall. 03549_ Acquired Prototype Flight Unit. 03549_ Identified Imp. VTOL Module. 03549_ Faulty integration triggers meltdown. 03549_ Broken Adv. Visual Processing Unit damaged (-5). 03552_ Slug penetrates Wall. 03562_ System corrupted: Matter fused (-10). 03566_ T-07 Excavator is excavating. 03586_ Critical hit (Burn: +37). 03586_ Slug penetrates Wall. 03589_ System corrupted: Heat flow error (+211). 03589_ U-05 Engineer destroyed. 03590_ Slug penetrates G-47 Trooper. 03591_ Acquired 17 matter. 03592_ Penetrated by Slug. Map ----- +----------------------------------------------------+ | ??????????????????????????????? """ ?????????????? | | ??????????????????????????????? """ ?????????????? | | ????????????????????????????????"""??????????????? | | ??????????????????????#######??? ???##########?? | | ??????????????????????# #####+##### #?? | | ??????????????????????# + """ #?? | | ??????????????????????# #### """ #?? | | ??????????????????????# #??# """ #?? | | ??????????????????????# ########??# #?? | | ????????????????######## ####???????# """ #?? | | ????????????????# # #[ ????????# """ #?# | | ????????????????#/ """ # x # ?????????# """ ]#? | | ????????????????# """ /??????????# # | | ????????????????#! """ # xg#???????########+#### | | ????????????????# # #???????# """ # | | ????????????????#/ ! ?# #???????# """ # | | ????????????????######?# #???????# """ + "" | | ?????????????????????### #???????# # "" | | ????????????????????## # #???????# [ # "" | | ????????????????????# #???????# # ! "" | | ????????????????????# # #????????? # | | ????????????????????# #= ############+##Y [ | | ????????????????????##?# Y | | ???????????????????????# ############### | | ???????????????????????# #?????????????## ###### | | ???????????????????????# @ #??????????????# #????? | | ???????????????????????# #??????????????# #????? | | ???????????????????????# #??????????????#+###### | | ???????????????????????# #??????????????# / | | ???????????????????????# #??????????????#[ | | ??????????????????????? #??????????????# | | ??????????????????????? #??????????????# / | | ?????????????????????? #??????????????# | | ?????????????????????? #??????????????# | | ????????????????????? #??????????????# | | ?????????????????????! #??????????????# | | ????????????????????#### #??????????????# | | ??????????????????????? ????????###########/## | | ??????????????????????? ????? | | ??????????????????????? Y ????? # | | ??????????????????????? ????? # | | ??????????????????????????????????################ | | ?????????????????????????????????????????????????? | | ?????????????????????????????????????????????????? | | ?????????????????????????????????????????????????? | | ?????????????????????????????????????????????????? | | ?????????????????????????????????????????????????? | | ?????????????????????????????????????????????????? | | ?????????????????????????????????????????????????? | | ?????????????????????????????????????????????????? | +----------------------------------------------------+ Best States ------------- Heat Dissipation 45 Energy Generation 14 Energy Capacity 265 Matter Stores 300 Matter Capacity 300 Sight Range 16 Terrain Scan Range 14 Terrain Scan Density 10 Armor Coverage 150 Propulsion Shielding 33 Weapon Shielding 33 Evasion (%) 55 Targeting Accuracy 5 Item Schematics ----------------- None Robot Schematics ------------------ None Fabricated ------------ Nothing Alien Tech Used ----------------- None Achievements -------------- None Challenges ------------ None Game ------ Seed GrapheneVortexStabilizer Manual? 0 Play Time 00:36:32 Cumulative 352.4 hours Start 2024.08.03 @ 01:41:49 End 2024.08.03 @ 04:40:08 Sessions 1 Manual Loads 0 Difficulty Rogue Special Mode None Game No. 492 Rogue 491 Adventurer 0 Explorer 1 Win Type - Total 3 Types 3/0/0/0/0/0/0/0/0 Lore% 66 Gallery% 79 Achievement% 61 Wizard Run 0 Options --------- Layout 1 ASCII 1 Keyboard 1 Movement Vi Keybinds 0 Fullscreen 1 Font 24/Smallcaps Map View 50x40 Zoom Use 0% Tactical HUD 1 Map Filters NONE Filters LOW_CONTRAST(13,24,33) Steam 1 RUN: f2984824-dfb8-41ad-9192-6357a9795677